[Event "Vienna Chess Open 2019"]
[Site "Vienna"]
[Date "2019.08.20"]
[Round "5.10"]
[White "Janik, Igor"]
[Black "Yao, Lan"]
[Result "1-0"]
[ECO "A40"]
[WhiteElo "2483"]
[BlackElo "2320"]
[Annotator "ChessBase"]
[PlyCount "137"]
[EventDate "2019.08.17"]
[EventType "swiss"]
[EventCountry "AUT"]
[SourceTitle "playchess.com"]
[Source "ChessBase"]
[SourceQuality "1"]
[TimeControl "40/5400+30:1800+30"]

1. d4 {[%emt 0:00:00]} Nf6 {[%emt 0:00:00]} 2. c4 {[%emt 0:00:00]} e6 {[%emt 0:00:00]} 3. g3 {[%emt 0:00:00]} Bb4+ {[%emt 0:00:00]} 4. Bd2 {[%emt 0:00:00]} a5 {[%emt 0:00:00]} 5. Bg2 {[%emt 0:00:09]} O-O {[%emt 0:00:00]} 6. Nf3 {[%emt 0:00:17]} b6 {[%emt 0:00:08]} 7. O-O {[%emt 0:00:21]} Bb7 {[%emt 0:00:06]} 8. Bg5 {[%emt 0:01:15]} Be7 {[%emt 0:00:07]} 9. Qc2 {[%emt 0:02:52]} Be4 {[%emt 0:14:52]} 10. Qc1 {[%emt 0:01:40]} h6 {[%emt 0:10:26]} 11. Bxf6 {[%emt 0:02:00]} Bxf6 {[%emt 0:00:06]} 12. Nc3 {[%emt 0:00:20]} Bb7 {[%emt 0:17:38]} 13. e4 {[%emt 0:02:30]} d6 {[%emt 0:00:12]} 14. Rd1 {[%emt 0:04:10]} Qc8 {[%emt 0:02:17]} 15. h4 {[%emt 0:08:20]} e5 {[%emt 0:03:33]} 16. d5 {[%emt 0:00:08]} Na6 {[%emt 0:01:57]} 17. Ne1 {[%emt 0:01:50]} Qd8 {[%emt 0:05:05]} 18. Bh3 {[%emt 0:00:32]} Bc8 {[%emt 0:01:15]} 19. Bxc8 {[%emt 0:00:11]} Qxc8 {[%emt 0:00:08]} 20. Qe3 {[%emt 0:03:51]} Be7 {[%emt 0:01:57]} 21. Kg2 {[%emt 0:01:19]} Nc5 {[%emt 0:04:29]} 22. Nd3 {[%emt 0:00:19]} Nxd3 {[%emt 0:01:21]} 23. Rxd3 {[%emt 0:01:15]} f5 {[%emt 0:00:51]} 24. exf5 {[%emt 0:01:51]} Rxf5 {[%emt 0:00:23]} 25. Qe4 {[%emt 0:01:38]} Qd7 {[%emt 0:03:45]} 26. Rf3 {[%emt 0:01:45]} Rxf3 {[%emt 0:00:10]} 27. Qxf3 {[%emt 0:00:18]} Rf8 {[%emt 0:00:06]} 28. Qe4 {[%emt 0:00:15]} Bd8 {[%emt 0:01:50]} 29. a3 {[%emt 0:01:22]} Qf7 {[%emt 0:00:22]} 30. f3 {[%emt 0:01:01]} Be7 {[%emt 0:04:34]} 31. Nb5 {[%emt 0:05:46]} Bf6 {[%emt 0:00:18]} 32. Re1 {[%emt 0:01:10]} Qd7 {[%emt 0:04:44]} 33. b3 {[%emt 0:01:28]} Kh8 {[%emt 0:13:02]} 34. Nc3 {[%emt 0:06:27]} Be7 {[%emt 0:04:02]} 35. Qg6 {[%emt 0:01:33]} Rf6 {[%emt 0:01:27]} 36. Qd3 {[%emt 0:01:22]} Rf8 {[%emt 0:00:39]} 37. Re4 {[%emt 0:00:43]} Qf5 {[%emt 0:01:15]} 38. Nb5 {[%emt 0:00:56]} Bd8 {[%emt 0:00:58]} 39. b4 {[%emt 0:00:32]} axb4 {[%emt 0:00:27]} 40. axb4 {[%emt 0:00:05]} Kg8 {[%emt 0:03:32]} 41. Re3 {[%emt 0:31:00]} Qxd3 {[%emt 0:12:40]} 42. Rxd3 {[%emt 0:00:00]} Kf7 {[%emt 0:00:04]} 43. Re3 {[%emt 0:00:00]} Re8 {[%emt 0:02:27]} 44. Kf2 {[%emt 0:00:00]} Ke7 {[%emt 0:03:11]} 45. Nd4 {[%emt 0:00:00]} Kd7 {[%emt 0:02:23]} 46. Ne6 {[%emt 0:00:00]} Bf6 {[%emt 0:01:05]} 47. Ra3 {[%emt 0:00:00]} g6 {[%emt 0:01:15]} 48. Ra7 {[%emt 0:00:00]} Rc8 {[%emt 0:01:38]} 49. Ke3 {[%emt 0:00:00]} Be7 {[%emt 0:02:40]} 50. Ke4 {[%emt 0:00:00]} Bf6 {[%emt 0:01:22]} 51. c5 {[%emt 0:00:00]} dxc5 {[%emt 0:00:59]} 52. bxc5 {[%emt 0:00:00]} bxc5 {[%emt 0:00:33]} 53. Nxc5+ {[%emt 0:00:00]} Kd6 {[%emt 0:02:46]} 54. Ra6+ {[%emt 0:00:00]} c6 {[%emt 0:00:45]} 55. Nd3 {[%emt 0:00:00]} Ke7 {[%emt 0:02:25]} 56. Rxc6 {[%emt 0:00:00]} Ra8 {[%emt 0:00:49]} 57. Nxe5 {[%emt 0:00:00]} Ra4+ {[%emt 0:00:34]} 58. Rc4 {[%emt 0:00:00]} Rxc4+ {[%emt 0:00:54]} 59. Nxc4 {[%emt 0:00:00]} Bc3 {[%emt 0:00:03]} 60. Ne5 {[%emt 0:00:00]} Kf6 {[%emt 0:00:34]} 61. f4 {[%emt 0:00:00]} Be1 {[%emt 0:00:50]} 62. Kf3 {[%emt 0:00:00]} g5 {[%emt 0:00:59]} 63. Ng4+ {[%emt 0:00:00]} Kg6 {[%emt 0:00:03]} 64. h5+ {[%emt 0:00:00]} Kg7 {[%emt 0:00:49]} 65. f5 {[%emt 0:00:00]} Bb4 {[%emt 0:00:26]} 66. Nf2 {[%emt 0:00:00]} Kf6 {[%emt 0:00:44]} 67. g4 {[%emt 0:00:00]} Ba3 {[%emt 0:00:57]} 68. Ke4 {[%emt 0:00:00]} Ke7 {[%emt 0:00:22]} 69. Nd3 {[%emt 0:00:00]} 1-0

[Event "Vienna Chess Open 2019"]
[Site "Vienna"]
[Date "2019.08.20"]
[Round "5.10"]
[White "Fedorovsky, Michael"]
[Black "Kaasen, Tor Fredrik"]
[Result "1-0"]
[ECO "E10"]
[WhiteElo "2373"]
[BlackElo "2373"]
[Annotator "NA"]
[PlyCount "79"]
[EventDate "2019.08.17"]
[EventType "swiss"]
[EventCountry "AUT"]
[SourceTitle "playchess.com"]
[Source "ChessBase"]
[SourceQuality "1"]
[TimeControl "40/5400+30:1800+30"]

1. d4 {[%emt 0:00:23]} Nf6 {[%emt 0:00:04]} 2. c4 {[%emt 0:00:03]} e6 {[%emt 0:00:07]} 3. Nf3 {[%emt 0:00:05]} d5 {[%emt 0:00:07]} 4. g3 {[%emt 0:00:49]} Bb4+ {[%emt 0:00:48]} 5. Bd2 {[%emt 0:00:08]} Be7 {[%emt 0:00:07]} 6. Bg2 {[%emt 0:00:07]} O-O {[%emt 0:00:09]} 7. O-O {[%emt 0:00:29]} Nbd7 {[%emt 0:00:27]} 8. Qc2 {[%emt 0:00:25]} c6 {[%emt 0:00:30]} 9. Rd1 {[%emt 0:06:21]} b6 {[%emt 0:01:26]} 10. Bf4 {[%emt 0:01:45]} Ba6 {[%emt 0:03:24]} 11. Ne5 {[%emt 0:01:57]} Rc8 {[%emt 0:08:36]} 12. cxd5 {[%emt 0:05:25]} cxd5 {[%emt 0:00:43]} 13. Nc6 {[%emt 0:01:01]} Qe8 {[%emt 0:00:09]} 14. Nxe7+ {[%emt 0:00:13]} Qxe7 {[%emt 0:00:07]} 15. Nc3 {[%emt 0:03:03]} b5 {[%emt 0:10:28]} 16. Qd3 {[%emt 0:08:27]} Nb6 {[%emt 0:01:23]} 17. b3 {[%emt 0:13:09]} b4 {[%emt 0:15:52]} 18. Nxd5 {[%emt 0:04:41]} exd5 {[%emt 0:07:51]} 19. Qxa6 {[%emt 0:00:28]} Rc2 {[%emt 0:00:09]} 20. Bf3 {[%emt 0:04:13]} Ne4 {[%emt 0:06:34]} 21. a3 {[%emt 0:10:42]} bxa3 {[%emt 0:08:33]} 22. Qxa3 {[%emt 0:01:08]} Qxa3 {[%emt 0:02:11]} 23. Rxa3 {[%emt 0:00:57]} Nc3 {[%emt 0:00:04]} 24. Rda1 {[%emt 0:15:24]} Nb5 {[%emt 0:05:54]} 25. R3a2 {[%emt 0:00:11]} Rxa2 {[%emt 0:01:04]} 26. Rxa2 {[%emt 0:00:05]} Nxd4 {[%emt 0:00:06]} 27. Rxa7 {[%emt 0:00:40]} Nxf3+ {[%emt 0:02:29]} 28. exf3 {[%emt 0:00:13]} d4 {[%emt 0:00:11]} 29. Rb7 {[%emt 0:01:01]} Nd5 {[%emt 0:00:23]} 30. Be5 {[%emt 0:00:56]} d3 {[%emt 0:03:11]} 31. Rd7 {[%emt 0:00:40]} f6 {[%emt 0:00:02]} 32. Rxd5 {[%emt 0:02:27]} fxe5 {[%emt 0:00:07]} 33. Rxd3 {[%emt 0:00:18]} Kf7 {[%emt 0:00:04]} 34. b4 {[%emt 0:02:44]} Ke6 {[%emt 0:00:09]} 35. Kf1 {[%emt 0:02:01]} Rb8 {[%emt 0:00:18]} 36. Rb3 {[%emt 0:00:07]} Kd5 {[%emt 0:00:09]} 37. Ke2 {[%emt 0:02:57]} Kc4 {[%emt 0:02:12]} 38. Rb1 {[%emt 0:00:07]} Rxb4 {[%emt 0:07:06]} 39. Rxb4+ {[%emt 0:01:19]} Kxb4 {[%emt 0:00:05]} 40. Kd3 {[%emt 0:00:04]} 1-0

[Event "Vienna Chess Open 2019"]
[Site "Vienna"]
[Date "2019.08.20"]
[Round "5.10"]
[White "Herman, Diego"]
[Black "Akesson, Ralf"]
[Result "1/2-1/2"]
[ECO "C11"]
[WhiteElo "2185"]
[BlackElo "2348"]
[Annotator "NA"]
[PlyCount "28"]
[EventDate "2019.08.17"]
[EventType "swiss"]
[EventCountry "AUT"]
[SourceTitle "playchess.com"]
[Source "ChessBase"]
[SourceQuality "1"]
[TimeControl "40/5400+30:1800+30"]

1. e4 {[%emt 0:00:00]} e6 {[%emt 0:05:32]} 2. Nf3 {[%emt 0:01:29]} d5 {[%emt 0:00:21]} 3. Nc3 {[%emt 0:00:43]} Nf6 {[%emt 0:02:49]} 4. exd5 {[%emt 0:01:52]} exd5 {[%emt 0:04:43]} 5. d4 {[%emt 0:00:22]} Bf5 {[%emt 0:06:00]} 6. Bf4 {[%emt 0:02:53]} c6 {[%emt 0:01:57]} 7. Bd3 {[%emt 0:02:23]} Bxd3 {[%emt 0:04:05]} 8. Qxd3 {[%emt 0:01:22]} Bd6 {[%emt 0:03:04]} 9. Bxd6 {[%emt 0:07:10]} Qxd6 {[%emt 0:00:08]} 10. Qe3+ {[%emt 0:00:38]} Qe7 {[%emt 0:01:11]} 11. Qxe7+ {[%emt 0:02:35]} Kxe7 {[%emt 0:00:11]} 12. O-O-O {[%emt 0:10:11]} Re8 {[%emt 0:03:30]} 13. Rhe1+ {[%emt 0:02:05]} Kf8 {[%emt 0:00:12]} 14. Rxe8+ {[%emt 0:04:14]} Nxe8 {[%emt 0:00:40]} 1/2-1/2

[Event "Vienna Chess Open 2019"]
[Site "Vienna"]
[Date "2019.08.20"]
[Round "5.11"]
[White "Ankit, R. Rajpara"]
[Black "Ibanez Aullana, Ramon"]
[Result "1/2-1/2"]
[ECO "C07"]
[WhiteElo "2454"]
[BlackElo "2316"]
[Annotator "ChessBase"]
[PlyCount "51"]
[EventDate "2019.08.17"]
[EventType "swiss"]
[EventCountry "AUT"]
[SourceTitle "playchess.com"]
[Source "ChessBase"]
[SourceQuality "1"]
[TimeControl "40/5400+30:1800+30"]

1. e4 {[%emt 0:00:12]} e6 {[%emt 0:00:21]} 2. d4 {[%emt 0:00:07]} d5 {[%emt 0:00:07]} 3. Nd2 {[%emt 0:00:35]} c5 {[%emt 0:03:52]} 4. exd5 {[%emt 0:00:20]} Qxd5 {[%emt 0:00:21]} 5. dxc5 {[%emt 0:02:18]} Bxc5 {[%emt 0:03:49]} 6. Ngf3 {[%emt 0:00:18]} Nf6 {[%emt 0:00:57]} 7. Bc4 {[%emt 0:00:32]} Qd7 {[%emt 0:05:38]} 8. Qe2 {[%emt 0:04:19]} O-O {[%emt 0:10:12]} 9. O-O {[%emt 0:23:34]} Qc7 {[%emt 0:07:00]} 10. Ne4 {[%emt 0:04:52]} Be7 {[%emt 0:02:10]} 11. Nxf6+ {[%emt 0:05:53]} Bxf6 {[%emt 0:01:19]} 12. Bd3 {[%emt 0:04:43]} Nd7 {[%emt 0:04:46]} 13. Qe4 {[%emt 0:07:21]} g6 {[%emt 0:04:08]} 14. Bf4 {[%emt 0:02:37]} e5 {[%emt 0:03:02]} 15. Bg5 {[%emt 0:00:43]} Bg7 {[%emt 0:05:17]} 16. Qh4 {[%emt 0:02:15]} Nc5 {[%emt 0:02:22]} 17. Bc4 {[%emt 0:07:27]} Be6 {[%emt 0:10:23]} 18. Bxe6 {[%emt 0:01:16]} Nxe6 {[%emt 0:00:24]} 19. Bf6 {[%emt 0:00:58]} Qxc2 {[%emt 0:02:49]} 20. Bxe5 {[%emt 0:04:42]} Rad8 {[%emt 0:05:11]} 21. Rac1 {[%emt 0:01:08]} Qf5 {[%emt 0:01:05]} 22. Rfe1 {[%emt 0:04:53]} Rd5 {[%emt 0:01:30]} 23. Bxg7 {[%emt 0:01:15]} Kxg7 {[%emt 0:00:11]} 24. Qe4 {[%emt 0:02:01]} Rfd8 {[%emt 0:01:41]} 25. Qxf5 {[%emt 0:03:58]} Rxf5 {[%emt 0:00:17]} 26. Kf1 {[%emt 0:00:48]} 1/2-1/2

[Event "Vienna Chess Open 2019"]
[Site "Vienna"]
[Date "2019.08.20"]
[Round "5.11"]
[White "Markoja, Boris"]
[Black "Pfreundt, Jakob"]
[Result "1/2-1/2"]
[ECO "D56"]
[WhiteElo "2440"]
[BlackElo "2410"]
[Annotator "ChessBase"]
[PlyCount "113"]
[EventDate "2019.08.17"]
[EventType "swiss"]
[EventCountry "AUT"]
[SourceTitle "playchess.com"]
[Source "ChessBase"]
[SourceQuality "1"]
[TimeControl "40/5400+30:1800+30"]

1. d4 {[%emt 0:00:00]} d5 {[%emt 0:00:00]} 2. c4 {[%emt 0:00:00]} e6 {[%emt 0:00:07]} 3. Nc3 {[%emt 0:00:03]} Nf6 {[%emt 0:01:31]} 4. Bg5 {[%emt 0:00:26]} Be7 {[%emt 0:00:26]} 5. Nf3 {[%emt 0:00:28]} h6 {[%emt 0:00:54]} 6. Bh4 {[%emt 0:00:28]} O-O {[%emt 0:00:36]} 7. e3 {[%emt 0:00:21]} Ne4 {[%emt 0:06:36]} 8. Bxe7 {[%emt 0:00:52]} Qxe7 {[%emt 0:00:06]} 9. Rc1 {[%emt 0:00:08]} c6 {[%emt 0:02:49]} 10. g4 {[%emt 0:01:59]} Nd7 {[%emt 0:03:48]} 11. h4 {[%emt 0:00:45]} e5 {[%emt 0:08:07]} 12. cxd5 {[%emt 0:00:50]} Nxc3 {[%emt 0:05:58]} 13. Rxc3 {[%emt 0:00:28]} cxd5 {[%emt 0:00:07]} 14. g5 {[%emt 0:00:41]} e4 {[%emt 0:07:21]} 15. Nd2 {[%emt 0:00:50]} hxg5 {[%emt 0:09:34]} 16. Qh5 {[%emt 0:00:51]} g6 {[%emt 0:03:12]} 17. Qxg5 {[%emt 0:00:16]} Qxg5 {[%emt 0:02:27]} 18. hxg5 {[%emt 0:00:06]} Rd8 {[%emt 0:06:12]} 19. f3 {[%emt 0:01:12]} exf3 {[%emt 0:00:35]} 20. Nxf3 {[%emt 0:00:06]} Nf8 {[%emt 0:00:22]} 21. Bd3 {[%emt 0:01:01]} Be6 {[%emt 0:02:16]} 22. Kd2 {[%emt 0:03:02]} Rac8 {[%emt 0:05:31]} 23. a4 {[%emt 0:03:59]} Bd7 {[%emt 0:09:15]} 24. a5 {[%emt 0:04:50]} Ne6 {[%emt 0:01:02]} 25. Rg1 {[%emt 0:08:35]} Kf8 {[%emt 0:02:59]} 26. Ne5 {[%emt 0:08:38]} Ke7 {[%emt 0:00:26]} 27. Be2 {[%emt 0:00:19]} Rh8 {[%emt 0:05:07]} 28. Rg2 {[%emt 0:05:36]} Ng7 {[%emt 0:06:58]} 29. Bf3 {[%emt 0:12:11]} Be6 {[%emt 0:00:02]} 30. Rxc8 {[%emt 0:00:58]} Rxc8 {[%emt 0:00:02]} 31. Rh2 {[%emt 0:00:08]} Nf5 {[%emt 0:03:20]} 32. Rh7 {[%emt 0:01:05]} Rg8 {[%emt 0:00:32]} 33. Be2 {[%emt 0:05:31]} Nd6 {[%emt 0:03:57]} 34. Bd3 {[%emt 0:00:08]} Ke8 {[%emt 0:01:26]} 35. Ke2 {[%emt 0:02:51]} Rf8 {[%emt 0:01:01]} 36. Kf3 {[%emt 0:01:17]} Bf5 {[%emt 0:01:34]} 37. Bxf5 {[%emt 0:10:23]} Nxf5 {[%emt 0:00:02]} 38. Kf4 {[%emt 0:00:09]} Nd6 {[%emt 0:00:02]} 39. b3 {[%emt 0:00:20]} Ne4 {[%emt 0:00:37]} 40. Kg4 {[%emt 0:12:28]} Nd6 {[%emt 0:02:22]} 41. a6 {[%emt 0:37:03]} bxa6 {[%emt 0:03:51]} 42. Rh2 {[%emt 0:00:00]} Ke7 {[%emt 0:13:08]} 43. Ra2 {[%emt 0:00:00]} Nf5 {[%emt 0:01:26]} 44. Rxa6 {[%emt 0:00:00]} Nxe3+ {[%emt 0:00:36]} 45. Kf4 {[%emt 0:00:00]} Nf5 {[%emt 0:00:11]} 46. Rxa7+ {[%emt 0:00:00]} Ke6 {[%emt 0:00:38]} 47. Ra6+ {[%emt 0:00:00]} Ke7 {[%emt 0:04:04]} 48. Nc6+ {[%emt 0:00:00]} Kd6 {[%emt 0:01:42]} 49. Nb4+ {[%emt 0:00:00]} Kd7 {[%emt 0:00:12]} 50. Ke5 {[%emt 0:00:00]} Rb8 {[%emt 0:01:51]} 51. Ra7+ {[%emt 0:00:00]} Ke8 {[%emt 0:01:18]} 52. Nxd5 {[%emt 0:00:00]} Rb5 {[%emt 0:00:58]} 53. Rc7 {[%emt 0:00:00]} Ne3 {[%emt 0:01:46]} 54. Rc5 {[%emt 0:00:49]} Rxb3 {[%emt 0:00:08]} 55. Nf6+ {[%emt 0:00:11]} Kd8 {[%emt 0:00:24]} 56. d5 {[%emt 0:01:52]} Rb4 {[%emt 0:00:49]} 57. Rc3 {[%emt 0:04:31]} 1/2-1/2

[Event "Vienna Chess Open 2019"]
[Site "Vienna"]
[Date "2019.08.20"]
[Round "5.11"]
[White "Gungl, Theo"]
[Black "Dehmel, Jens"]
[Result "1-0"]
[ECO "C68"]
[WhiteElo "2344"]
[BlackElo "2008"]
[Annotator "NA"]
[PlyCount "81"]
[EventDate "2019.08.17"]
[EventType "swiss"]
[EventCountry "AUT"]
[SourceTitle "playchess.com"]
[Source "ChessBase"]
[SourceQuality "1"]
[TimeControl "40/5400+30:1800+30"]

1. e4 {[%emt 0:00:00]} e5 {[%emt 0:00:07]} 2. Nf3 {[%emt 0:00:00]} Nc6 {[%emt 0:00:48]} 3. Bb5 {[%emt 0:00:00]} a6 {[%emt 0:00:16]} 4. Bxc6 {[%emt 0:00:00]} dxc6 {[%emt 0:00:08]} 5. O-O {[%emt 0:00:00]} Qf6 {[%emt 0:00:13]} 6. d4 {[%emt 0:00:15]} exd4 {[%emt 0:00:08]} 7. Bg5 {[%emt 0:00:07]} Qd6 {[%emt 0:00:11]} 8. Nxd4 {[%emt 0:01:01]} Be7 {[%emt 0:00:25]} 9. Bxe7 {[%emt 0:04:42]} Nxe7 {[%emt 0:00:06]} 10. Nc3 {[%emt 0:00:25]} Bd7 {[%emt 0:00:06]} 11. Nb3 {[%emt 0:01:51]} Qxd1 {[%emt 0:00:43]} 12. Raxd1 {[%emt 0:00:06]} b6 {[%emt 0:00:08]} 13. Rd2 {[%emt 0:02:35]} O-O-O {[%emt 0:00:12]} 14. Rfd1 {[%emt 0:00:50]} c5 {[%emt 0:00:07]} 15. f3 {[%emt 0:03:08]} Ng6 {[%emt 0:08:30]} 16. Nd5 {[%emt 0:04:45]} Rhe8 {[%emt 0:04:10]} 17. Ne3 {[%emt 0:08:26]} Ne5 {[%emt 0:03:20]} 18. Kf2 {[%emt 0:04:55]} a5 {[%emt 0:02:37]} 19. Nc1 {[%emt 0:01:02]} f6 {[%emt 0:06:44]} 20. Ne2 {[%emt 0:03:44]} Be6 {[%emt 0:02:12]} 21. Rxd8+ {[%emt 0:02:02]} Rxd8 {[%emt 0:00:07]} 22. Rxd8+ {[%emt 0:00:07]} Kxd8 {[%emt 0:00:05]} 23. a3 {[%emt 0:00:10]} Kd7 {[%emt 0:04:10]} 24. Nf4 {[%emt 0:01:39]} Bf7 {[%emt 0:00:23]} 25. Ke2 {[%emt 0:01:11]} c4 {[%emt 0:15:32]} 26. Kd2 {[%emt 0:02:04]} b5 {[%emt 0:02:39]} 27. Ne2 {[%emt 0:11:32]} b4 {[%emt 0:09:10]} 28. axb4 {[%emt 0:01:32]} axb4 {[%emt 0:00:07]} 29. f4 {[%emt 0:02:11]} Nc6 {[%emt 0:02:27]} 30. c3 {[%emt 0:03:04]} b3 {[%emt 0:03:20]} 31. Nd4 {[%emt 0:00:52]} Na5 {[%emt 0:01:49]} 32. Nef5 {[%emt 0:04:46]} g6 {[%emt 0:03:24]} 33. Nh6 {[%emt 0:08:31]} Be8 {[%emt 0:01:58]} 34. Ng8 {[%emt 0:01:21]} Nb7 {[%emt 0:02:38]} 35. Nxf6+ {[%emt 0:01:41]} Ke7 {[%emt 0:00:04]} 36. Nxh7 {[%emt 0:01:07]} Nc5 {[%emt 0:00:34]} 37. Ng5 {[%emt 0:04:57]} Nd3 {[%emt 0:01:25]} 38. Nxb3 {[%emt 0:00:11]} Nxf4 {[%emt 0:02:31]} 39. Na5 {[%emt 0:00:24]} Bb5 {[%emt 0:01:17]} 40. g3 {[%emt 0:01:36]} Nd3 {[%emt 0:01:48]} 41. b3 {[%emt 0:30:44]} 1-0

[Event "Vienna Chess Open 2019"]
[Site "Vienna"]
[Date "2019.08.20"]
[Round "5.12"]
[White "Chylewski, Patryk"]
[Black "Fröwis, Georg"]
[Result "0-1"]
[ECO "E04"]
[WhiteElo "2429"]
[BlackElo "2356"]
[Annotator "NA"]
[PlyCount "76"]
[EventDate "2019.08.17"]
[EventType "swiss"]
[EventCountry "AUT"]
[SourceTitle "playchess.com"]
[Source "ChessBase"]
[SourceQuality "1"]
[TimeControl "40/5400+30:1800+30"]

1. d4 {[%emt 0:00:00]} d5 {[%emt 0:00:00]} 2. c4 {[%emt 0:00:00]} e6 {[%emt 0:00:00]} 3. Nf3 {[%emt 0:00:00]} Nf6 {[%emt 0:00:00]} 4. g3 {[%emt 0:00:00]} dxc4 {[%emt 0:03:27]} 5. Bg2 {[%emt 0:00:00]} Nc6 {[%emt 0:00:06]} 6. Qa4 {[%emt 0:00:06]} Bd7 {[%emt 0:00:17]} 7. Qxc4 {[%emt 0:00:07]} Rc8 {[%emt 0:00:09]} 8. O-O {[%emt 0:02:39]} Na5 {[%emt 0:02:08]} 9. Qd3 {[%emt 0:00:24]} c5 {[%emt 0:00:07]} 10. Nc3 {[%emt 0:00:32]} c4 {[%emt 0:03:38]} 11. Qd1 {[%emt 0:04:13]} b5 {[%emt 0:00:23]} 12. Ne5 {[%emt 0:02:08]} b4 {[%emt 0:00:36]} 13. Ne4 {[%emt 0:03:09]} Nxe4 {[%emt 0:03:23]} 14. Bxe4 {[%emt 0:00:06]} Bb5 {[%emt 0:00:51]} 15. e3 {[%emt 0:12:33]} g6 {[%emt 0:06:52]} 16. f4 {[%emt 0:07:38]} f6 {[%emt 0:05:34]} 17. Nf3 {[%emt 0:06:25]} Be7 {[%emt 0:00:14]} 18. Bc2 {[%emt 0:04:56]} O-O {[%emt 0:00:57]} 19. Rf2 {[%emt 0:07:11]} Qb6 {[%emt 0:01:59]} 20. e4 {[%emt 0:03:39]} Rfd8 {[%emt 0:01:54]} 21. Be3 {[%emt 0:03:18]} f5 {[%emt 0:09:29]} 22. g4 {[%emt 0:06:11]} b3 {[%emt 0:07:18]} 23. axb3 {[%emt 0:07:24]} cxb3 {[%emt 0:00:02]} 24. Bb1 {[%emt 0:01:14]} Nc4 {[%emt 0:03:08]} 25. Qxb3 {[%emt 0:01:55]} Nxe3 {[%emt 0:06:56]} 26. Qxe3 {[%emt 0:00:06]} fxg4 {[%emt 0:00:04]} 27. Ne5 {[%emt 0:07:43]} Rxd4 {[%emt 0:01:19]} 28. Kg2 {[%emt 0:02:56]} Bh4 {[%emt 0:09:20]} 29. Rc2 {[%emt 0:10:11]} Rcd8 {[%emt 0:00:51]} 30. Ba2 {[%emt 0:04:48]} Rd2+ {[%emt 0:17:37]} 31. Qxd2 {[%emt 0:00:07]} Rxd2+ {[%emt 0:00:03]} 32. Rxd2 {[%emt 0:00:05]} Qe3 {[%emt 0:00:05]} 33. Bxe6+ {[%emt 0:00:26]} Kf8 {[%emt 0:00:35]} 34. Rad1 {[%emt 0:01:23]} Be1 {[%emt 0:02:50]} 35. Bc4 {[%emt 0:03:22]} Bxd2 {[%emt 0:01:26]} 36. Bxb5 {[%emt 0:00:08]} Qxe4+ {[%emt 0:00:11]} 37. Kg1 {[%emt 0:00:11]} Be3+ {[%emt 0:00:15]} 38. Kf1 {[%emt 0:00:05]} Qxf4+ {[%emt 0:00:08]} 0-1

[Event "Vienna Chess Open 2019"]
[Site "Vienna"]
[Date "2019.08.20"]
[Round "5.12"]
[White "Haldorsen, Benjamin"]
[Black "Belous, Mikhail"]
[Result "1/2-1/2"]
[ECO "B23"]
[WhiteElo "2308"]
[BlackElo "2308"]
[Annotator "ChessBase"]
[PlyCount "119"]
[EventDate "2019.08.17"]
[EventType "swiss"]
[EventCountry "AUT"]
[SourceTitle "playchess.com"]
[Source "ChessBase"]
[SourceQuality "1"]
[TimeControl "40/5400+30:1800+30"]

1. e4 {[%emt 0:00:00]} c5 {[%emt 0:00:00]} 2. Nc3 {[%emt 0:00:03]} a6 {[%emt 0:00:00]} 3. g3 {[%emt 0:00:42]} b5 {[%emt 0:01:30]} 4. Bg2 {[%emt 0:00:07]} Bb7 {[%emt 0:00:18]} 5. d3 {[%emt 0:00:05]} e6 {[%emt 0:01:06]} 6. Nh3 {[%emt 0:00:07]} Be7 {[%emt 0:06:30]} 7. O-O {[%emt 0:01:27]} h5 {[%emt 0:00:52]} 8. f4 {[%emt 0:16:04]} b4 {[%emt 0:05:17]} 9. Ne2 {[%emt 0:03:43]} Nc6 {[%emt 0:07:03]} 10. a3 {[%emt 0:06:27]} bxa3 {[%emt 0:10:56]} 11. bxa3 {[%emt 0:01:03]} Nf6 {[%emt 0:01:22]} 12. Rb1 {[%emt 0:03:30]} Rb8 {[%emt 0:00:41]} 13. c4 {[%emt 0:00:48]} Ba8 {[%emt 0:10:34]} 14. Rxb8 {[%emt 0:07:56]} Qxb8 {[%emt 0:00:07]} 15. Nf2 {[%emt 0:00:26]} d6 {[%emt 0:03:36]} 16. h3 {[%emt 0:02:19]} e5 {[%emt 0:03:10]} 17. Nc3 {[%emt 0:06:38]} h4 {[%emt 0:07:37]} 18. gxh4 {[%emt 0:07:31]} exf4 {[%emt 0:07:36]} 19. Bxf4 {[%emt 0:01:26]} Nh5 {[%emt 0:02:14]} 20. Bg5 {[%emt 0:06:37]} Qd8 {[%emt 0:02:30]} 21. Qd2 {[%emt 0:03:31]} Ne5 {[%emt 0:05:48]} 22. Ng4 {[%emt 0:02:05]} Ng6 {[%emt 0:01:07]} 23. Bxe7 {[%emt 0:15:49]} Qxe7 {[%emt 0:00:14]} 24. Rb1 {[%emt 0:00:09]} O-O {[%emt 0:02:32]} 25. Qg5 {[%emt 0:00:13]} Nhf4 {[%emt 0:01:49]} 26. Bf1 {[%emt 0:02:45]} f5 {[%emt 0:06:01]} 27. exf5 {[%emt 0:04:45]} Qxg5 {[%emt 0:01:06]} 28. hxg5 {[%emt 0:00:02]} Rxf5 {[%emt 0:00:40]} 29. Rb6 {[%emt 0:01:43]} Bf3 {[%emt 0:04:46]} 30. Rxa6 {[%emt 0:00:44]} Rxg5 {[%emt 0:02:21]} 31. Rxd6 {[%emt 0:00:08]} Ne5 {[%emt 0:02:32]} 32. Kf2 {[%emt 0:01:00]} Bxg4 {[%emt 0:00:30]} 33. hxg4 {[%emt 0:00:02]} Nxg4+ {[%emt 0:00:12]} 34. Kf3 {[%emt 0:00:56]} Ng6 {[%emt 0:00:17]} 35. Bh3 {[%emt 0:03:18]} N4e5+ {[%emt 0:00:45]} 36. Ke4 {[%emt 0:00:51]} Rg1 {[%emt 0:01:10]} 37. Be6+ {[%emt 0:02:18]} Kf8 {[%emt 0:00:12]} 38. Kd5 {[%emt 0:00:36]} Nxd3 {[%emt 0:00:33]} 39. Kc6 {[%emt 0:00:28]} Nge5+ {[%emt 0:02:06]} 40. Kc7 {[%emt 0:00:49]} Nf4 {[%emt 0:01:18]} 41. Bd5 {[%emt 0:09:39]} Rg3 {[%emt 0:14:32]} 42. Nb5 {[%emt 0:06:34]} Rb3 {[%emt 0:03:43]} 43. Rd8+ {[%emt 0:03:59]} Ke7 {[%emt 0:00:06]} 44. Nd6 {[%emt 0:00:11]} Ne6+ {[%emt 0:06:15]} 45. Bxe6 {[%emt 0:00:14]} Kxe6 {[%emt 0:00:05]} 46. a4 {[%emt 0:01:43]} Rb4 {[%emt 0:03:24]} 47. a5 {[%emt 0:01:08]} Nxc4 {[%emt 0:00:27]} 48. Nxc4 {[%emt 0:03:02]} Rxc4 {[%emt 0:00:02]} 49. a6 {[%emt 0:00:06]} Ra4 {[%emt 0:00:13]} 50. Kb6 {[%emt 0:00:08]} g5 {[%emt 0:02:47]} 51. a7 {[%emt 0:00:36]} Rxa7 {[%emt 0:01:46]} 52. Kxa7 {[%emt 0:00:02]} g4 {[%emt 0:00:31]} 53. Kb6 {[%emt 0:00:13]} Ke5 {[%emt 0:00:33]} 54. Kxc5 {[%emt 0:00:14]} g3 {[%emt 0:00:20]} 55. Rg8 {[%emt 0:01:03]} Kf4 {[%emt 0:00:08]} 56. Kd4 {[%emt 0:00:13]} Kf3 {[%emt 0:00:11]} 57. Kd3 {[%emt 0:01:21]} g2 {[%emt 0:00:21]} 58. Rf8+ {[%emt 0:00:28]} Kg3 {[%emt 0:00:13]} 59. Rg8+ {[%emt 0:00:12]} Kf2 {[%emt 0:00:35]} 60. Rxg2+ 1/2-1/2